Cogmind - Beta 9.1 @@@ ROGUE MODE // 2019.10.31 @ 15:44:11 // Halloween2019/Abominations Player: SHADOWELITE7 Result: Core destroyed Performance ------------- Evolutions (1) 500 Regions Visited (2) 400 Robots Destroyed (9) 45 Value Destroyed (426) 426 Prototype IDs (2) 40 Alien Tech Used (0) 0 Bonus (0) 0 TOTAL SCORE: 1411 Bonus ------- None Cogmind --------- Core Integrity 0/400 Matter 287/300 Energy 100/100 System Corruption 0% Temperature Cool (0) Location -9/Materials Parts ------- Power (1) Propulsion (2) Utility (2) Large Storage Unit Large Storage Unit Weapon (4) Inventory (16) Peak State ------------ Power Ion Engine Propulsion Aluminum Leg Aluminum Leg Utility Small Storage Unit Large Storage Unit Weapon Medium Laser Medium Laser Inventory (Empty) [Rating: 7] Favorites ----------- Power Ion Engine Engine Ion Engine Propulsion Aluminum Leg Leg Aluminum Leg Utility Large Storage Unit Storage Large Storage Unit Weapon Medium Laser Energy Gun Medium Laser Launcher Grenade Launcher Build | -11 -10 -9 ------- Run | Scr Mat Mat Slots Evolved 2 | . . 2 Power . | . . . Propulsion . | . . . Utility . | . . . Weapon 2 | . . 2 Parts Attached 17 | 6 9 2 Power 1 | 1 . . Engine 1 | 1 . . Core . | . . . Reactor . | . . . Propulsion 3 | 2 1 . Treads . | . . . Leg 3 | 2 1 . Wheel . | . . . Hover . | . . . Flight . | . . . Utility 3 | 1 2 . Device . | . . . Storage 3 | 1 2 . Processor . | . . . Hackware . | . . . Protection . | . . . Artifact . | . . . Weapon 10 | 2 6 2 Energy Gun 6 | 2 2 2 Energy Cannon . | . . . Ballistic Gun . | . . . Ballistic Cannon . | . . . Launcher 4 | . 4 . Special Weapon . | . . . Impact Weapon . | . . . Slashing Weapon . | . . . Piercing Weapon . | . . . Special Melee Weapon . | . . . Unidentified Prototypes . | . . . Parts Lost 7 | . 2 5 Power 1 | . . 1 Propulsion 1 | . . 1 Utility . | . . . Weapon 5 | . 2 3 Highest Loss Streak 3 | . 1 3 Average Slot Usage (%) 84 | . 91 59 Engine 12 | . 14 6 Leg 21 | . 25 9 Storage 26 | . 27 22 Energy Gun 15 | . 15 15 Launcher 6 | . 7 6 Naked Turns . | . . . Heaviest Build 44 | 13 43 44 Greatest Support 20 | 20 20 10 Greatest Overweight (x) 10 | . 4 10 Average Overweight (x) 2 | . 2 4 Largest Inventory Capacity 16 | 6 16 16 Average Capacity 15 | 5 15 16 Most Carried 7 | 2 7 1 Average Carried 2 | . 2 . Final Capacity 16 | 6 16 16 Final Carried 2 | . 2 . Class Distribution -------------------- 89% | Mutant 10% | Gunner Dominant Class ---------------- Mutant | -10/Materials Gunner | -9/Materials Resources | -11 -10 -9 ----------- Run | Scr Mat Mat Matter Collected 610 | 188 422 . Remotely . | . . . Salvage Created 121 | . 121 . Parts 15 | . 15 . Haulers Intercepted . | . . . Recyclers Shooed . | . . . Parts Field Recycled . | . . . Retrieved Matter . | . . . Parts Self-Destructed . | . . . Prevented . | . . . Kills | -11 -10 -9 ------- Run | Scr Mat Mat Combat Hostiles Destroyed 6 | . 6 . AOE 6 | . 6 . Classes Destroyed 4 | . 4 . Worker 1 | . 1 . Builder 1 | . 1 . Abomination 6 | . 6 . Anomaly 1 | . 1 . Best Kill Streak 5 | . 5 . Combat Bots Only 4 | . 4 . Max Kills in Single Turn 2 | . 2 . Gunslinging . | . . . Exploded 1 | . 1 . Melee . | . . . Uniques/NPCs Destroyed . | . . . Combat | -11 -10 -9 -------- Run | Scr Mat Mat Damage Taken 1763 | . 701 1062 Core 469 | . 56 413 Absorbed by Shields . | . . . Core Remaining (%) 88 | 100 77 . Volleys Fired 25 | . 17 8 Largest 3 | . 2 3 Hottest 120 | . 60 120 Shots Fired 40 | . 28 12 Gun 11 | . 1 10 Cannon . | . . . Launcher 29 | . 27 2 Special . | . . . Kinetic . | . . . Thermal 3 | . 1 2 Explosive 29 | . 27 2 Electromagnetic 8 | . . 8 Robot Hit Streak 10 | . 10 10 Robot Miss Streak 3 | . 3 1 Penetration Max . | . . . Secondary Targets . | . . . Shots Hit Robots 29 | . 18 11 Core Hits 33 | . 27 6 Critical Hits . | . . . Critical Kills . | . . . Critical Parts Destroyed . | . . . Melee Attacks . | . . . Impact . | . . . Slashing . | . . . Piercing . | . . . Sneak Attacks . | . . . Combat Hostiles . | . . . Follow-up Attacks . | . . . Damage Inflicted 1356 | . 967 389 Guns 34 | . . 34 Cannons . | . . . Explosions 1322 | . 967 355 Melee . | . . . Ramming . | . . . Kinetic . | . . . Thermal 15 | . . 15 Explosive 1322 | . 967 355 Electromagnetic 19 | . . 19 Impact . | . . . Slashing . | . . . Piercing . | . . . Highest Corruption 2 | . 2 . Average Corruption 1 | . 1 . Corruption Purged . | . . . Effects 1 | . 1 . Message Errors 1 | . 1 . Overload Shots . | . . . Overflow Damage 113 | . 55 58 Projectiles . | . . . Explosions 113 | . 55 58 Melee . | . . . Knockbacks . | . . . Impact . | . . . Kinetic . | . . . Secondary . | . . . Self-Inflicted Damage 274 | . 31 243 Shots 5 | . 1 4 Rammed 1 | . . 1 Targets Rammed 1 | . . 1 Kicked . | . . . Crushed . | . . . Highest Temperature 69 | . 21 69 Average Temperature 22 | . 10 43 Received Heat Transfer 228 | . 168 60 Siege Activations . | . . . Robots Corrupted . | . . . Combat Hostiles . | . . . Parts Fried 1 | . 1 . Impact Corruptions . | . . . Robots Melted . | . . . Combat Hostiles . | . . . Parts Melted . | . . . Heat Transferred 9 | . . 9 Parts Sabotaged . | . . . Parts Stolen . | . . . Parts Stripped . | . . . Power Chain Reactions . | . . . Missiles Intercepted . | . . . Alert | -11 -10 -9 ------- Run | Scr Mat Mat Peak Influence 30 | . 20 30 Average Influence 5 | . 5 9 Maximum Alert Level . | . . . Low Security (%) 100 | . . . Level 1 . | . . . Level 2 . | . . . Level 3 . | . . . Level 4 . | . . . Level 5 . | . . . High Security . | . . . Max Security . | . . . Squads Dispatched 5 | . 4 1 Investigation . | . . . Extermination . | . . . Reinforcement 4 | . 3 1 Assault 1 | . 1 . Garrison . | . . . Intercept . | . . . Construction Impeded . | . . . Haulers Reinforced . | . . . Stealth | -11 -10 -9 --------- Run | Scr Mat Mat Distress Signals 9 | . 1 8 Communications Jammed . | . . . Distress Signals . | . . . Times Spotted 10 | . 6 4 Peak Tracking Total 5 | . 4 5 Tactical Retreats 1 | . . 1 Traps | -11 -10 -9 ------- Run | Scr Mat Mat Traps Triggered . | . . . Indirectly . | . . . Trap Hack Attempts . | . . . Triggered . | . . . Disarmed . | . . . Reprogrammed . | . . . Reused . | . . . Traps Extracted . | . . . Installed . | . . . Triggered . | . . . Machines | -11 -10 -9 ---------- Run | Scr Mat Mat Machines Disabled 3 | . . 3 Max in Single Turn 2 | . . 2 Machines Sabotaged . | . . . Garrisons Compromised . | . . . Overloaded Fab Kills . | . . . Fab Network Shutdowns . | . . . Hacking | -11 -10 -9 --------- Run | Scr Mat Mat Machines Accessed 1 | . 1 . Terminals 1 | . 1 . Fabricators . | . . . Repair Stations . | . . . Recycling Units . | . . . Scanalyzers . | . . . Garrison Access . | . . . Total Hacks 3 | . 3 . Successful 2 | . 2 . Failed 1 | . 1 . Catastrophic . | . . . Database Lockouts . | . . . Manual . | . . . Terminals 3 | . 3 . Fabricators . | . . . Repair Stations . | . . . Recycling Units . | . . . Scanalyzers . | . . . Garrison Access . | . . . Terminal Hacks 2 | . 2 . Prototype ID Bank 1 | . 1 . Level Access Points 1 | . 1 . Fabricator Hacks . | . . . Repair Station Hacks . | . . . Recycling Unit Hacks . | . . . Scanalyzer . | . . . Garrison Access Hacks . | . . . Unauthorized Hacks . | . . . Terminals . | . . . Fabricators . | . . . Repair Stations . | . . . Recycling Units . | . . . Scanalyzers . | . . . Garrison Access . | . . . Data Cores Recovered . | . . . Used . | . . . Hacking Detections 1 | . 1 . Full Trace Events . | . . . Feedback Events . | . . . Feedback Blocked . | . . . Robot Schematics Acquired . | . . . Robots Built . | . . . Matter . | . . . Time . | . . . Total Robot Build Rating . | . . . Part Schematics Acquired . | . . . Parts Built . | . . . Matter . | . . . Time . | . . . Total Part Build Rating . | . . . Parts Repaired . | . . . Time . | . . . Parts Recycled . | . . . Recycled Matter . | . . . Retrieved Matter . | . . . Retrieved Components . | . . . Parts Scanalyzed . | . . . Part Schematics Acquired . | . . . Parts Damaged . | . . . Bothacking | -11 -10 -9 ------------ Run | Scr Mat Mat Used RIF Installer . | . . . Robots Hacked . | . . . Non-combat . | . . . Combat . | . . . Robot Hacks Applied . | . . . Relay Couplers Released . | . . . Robots Rewired . | . . . Allies Hacked . | . . . Hacks Repelled . | . . . Allies | -11 -10 -9 -------- Run | Scr Mat Mat Total Allies . | . . . Largest Group . | . . . Highest-Rated Group . | . . . Highest-Rated Ally . | . . . Total Orders . | . . . Ally Attacks . | . . . Total Damage . | . . . Kills . | . . . Allies Corrupted . | . . . Allies Melted . | . . . Intel | -11 -10 -9 ------- Run | Scr Mat Mat Robot Analysis Total . | . . . Derelict Logs Recovered . | . . . Drone Launches . | . . . Drone Recoveries . | . . . Exploration | -11 -10 -9 ------------- Run | Scr Mat Mat Turns Passed 952 | 65 697 190 Spaces Moved 453 | 50 338 65 Core 15 | 9 . 6 Treads . | . . . Legs 438 | 41 338 59 Wheels . | . . . Hover . | . . . Flight . | . . . Fastest Speed 50 | 50 120 210 Average Speed 184 | 107 181 260 Slowest Speed 550 | 120 240 550 Overloaded Moves . | . . . Propulsion Burnouts . | . . . Robots Hopped . | . . . Cave-ins Triggered . | . . . Exploration Rate (%) 15 | 3 36 8 Regions Visited 2 Branch Regions . Pre-discovered Areas . | . . . Known Exits Taken 1 | . 1 . Unknown Exits Taken 1 | 1 . . Scrap Searched . | . . . Spaces Dug . | . . . Terrain Destroyed 159 | . 107 52 Melee . | . . . Projectile . | . . . AOE 159 | . 107 52 Actions | -11 -10 -9 --------- Run | Scr Mat Mat Total 509 | 61 372 76 Wait . | . . . Move 448 | 49 334 65 Hop . | . . . Pick Up 15 | 6 9 . Fast Attach . | . . . Attach 17 | 6 9 2 Detach 2 | . 2 . Swap . | . . . Drop 1 | . 1 . Fire 25 | . 17 8 Melee . | . . . Ram . | . . . Kick 1 | . . 1 Crush . | . . . Escape Stasis . | . . . Rewire . | . . . Trap . | . . . Miscellaneous . | . . . Route ------- -11/Scrapyard -10/Materials (discovered 3 exits: *Mat x3) -9/Materials History --------- Turn | Location | Event 3 | -11/Scrapyard | Discovered new exit (range 15) 66 | -11/Scrapyard | Entered Materials 107 | -10/Materials | Identified exit to Materials 300 | -10/Materials | Discovered new exit (range 16) 309 | -10/Materials | Build established: Mutant 763 | -10/Materials | Entered another Materials area 763 | -9/Materials | Evolved 2 slots: Weapon x2 880 | -9/Materials | Core integrity fell below 50% 902 | -9/Materials | Lost 3 parts (1p2w) 926 | -9/Materials | Core integrity fell below 20% 954 | -9/Materials | Core destroyed Last Messages --------------- 00874_ Lesser Abomination absorbs Sml. Storage Unit. 00875_ K-01 Serf collects debris. 00877_ The unstable cave ceiling collapses. 00879_ K-01 Serf collects debris. 00918_ Slammed into Lesser Abomination. 00919_ EM Pulse Gun destroyed. 00921_ Aluminum Leg destroyed. 00924_ K-01 Serf collects debris. 00926_ Lesser Abomination triggered Shock Trap. 00926_ The floor emits a surge of raw power. 00928_ K-01 Serf collects debris. 00928_ Lesser Abomination destroyed. 00931_ K-01 Serf collects debris. 00932_ Lesser Abomination triggered Shock Trap. 00932_ The floor emits a surge of raw power. 00934_ K-01 Serf collects debris. 00936_ Door malfunctions. 00937_ Lesser Abomination IFF system glitched. 00938_ K-01 Serf collects debris. 00954_ Hit by a wave of energy. Map ----- +----------------------------------------------------+ | ?????????????????????????????????????????????????? | | ?????????????????????????????????????????????????? | | ?????????????????????????????????????????????????? | | ?????????????????????????????????????????????????? | | ?????????????????????????????????????????????????? | | ?????????????????????????????????????????????????? | | ?????????????????????????????????????????????????? | | ?????????????????????????????????????????????????? | | ???????????????? ???????????????????????????????? | | ????????????? ???????????????????????????????? | | ??????????? ??????????????????????????????? | | ???????????? ??????????????????????????????? | | ????????????# ??????????????????????????????? | | ????????????# ????#####?????????????????????? | | ????????????# ???? ?????????????????????? | | ????????##### ###? """ "???????????????????? | | ????????? % ## """ "???????????????????? | | ?????????########+##### """?????????????????????? | | ?????????# # ??????????????????????? | | ?????????# # #???????????????????????? | | ?????????# ##########?????????????????? | | ?????????# # #?????????????????? | | ?????????# # [ #?????????????????? | | ?????????# # # ##+## #?????????????????? | | ?????????### # # + #?????????????????? | | ??????????##### # # @ k #?????????????????? | | ?????????????# # # # #?????????????????? | | ?????????????#?#### #n ] #?????????????????? | | ??????????????????# # #?????????????????? | | ??????????????????# # #?????????????????? | | ????############### ###+##########?????????????? | | ????# !% ????????? | | ????# ????????? | | ????# ^ ????????? | | ????# #####+##########################?????????? | | ????# # #????????????????????????????? | | ????# # #????????????????????????????? | | ????# # #????????????????????????????? | | ????##### #????????????????????????????? | | ????????# #????????????????????????????? | | ????????# #????????????????????????????? | | ????????# #????????????????????????????? | | ????????#############????????????????????????????? | | | | | | | | | | | | | | | +----------------------------------------------------+ Best States ------------- Heat Dissipation 28 Energy Generation 10 Energy Capacity 250 Matter Stores 300 Matter Capacity 300 Sight Range 16 Terrain Scan Density 10 Evasion (%) 40 Item Schematics ----------------- None Robot Schematics ------------------ None Fabricated ------------ Nothing Alien Tech Used ----------------- None Achievements -------------- None Challenges ------------ None Game ------ Seed SlugChargeCannon Manual? 0 Play Time 00:12:46 Cumulative 12.0 hours Start 2019.10.31 @ 15:28:07 End 2019.10.31 @ 15:44:11 Sessions 1 Manual Loads 0 Difficulty Rogue Special Mode Halloween2019/Abominations Game No. 48 Rogue 48 Adventurer 0 Explorer 3 Win Type - Total 0 Types 0/0/0/0/0/0/0 Lore% 15 Gallery% 14 Achievement% 12 Wizard Run 0 Options --------- ASCII 0 Keyboard 0 Movement Arrows Keybinds 0 Fullscreen 0 Font 14/Terminus Map View 76x50 Tactical HUD 1 Map Filters NONE Filters NONE Steam 1 RUN: 2314b20a-663d-4111-9151-fdcfbc1113fa